fUSD/lending_fUSD_20260116
["ID","MTS","AMOUNT","RATE_DAILY","PERIOD"]
[402166541,1768557040232,-2480.70265207,0.00017999,2]
[402166542,1768557040243,-300.0,0.00017999,2]
[402166543,1768557040253,-37642.1436179,0.00018,2]
[402166553,1768557046012,-151.0,0.00016412,2]
[402166554,1768557046021,-2111.36620892,0.00018,2]
[402166651,1768557251617,2534.0,0.00030136,120]
[402166654,1768557313199,235.0,0.00030136,120]
[402166740,1768557938938,658.0,0.00030136,120]
[402166746,1768558027097,-500.0,0.00015773,2]
[402166747,1768558027119,-166.66,0.00015938,2]
[402166748,1768558027141,-195.0,0.00015997,2]
[402166749,1768558027161,-250.0,0.00016056,2]
[402166750,1768558027184,-151.0,0.00016214,2]
[402166751,1768558027204,-190.72031864,0.00016225,2]
[402166752,1768558027227,-166.66,0.00016273,2]
[402166753,1768558027247,-1166.88752484,0.00016455,2]
[402166756,1768558098115,271.20842472,0.00030137,120]
[402166757,1768558149128,-29.40247516,0.00016455,2]
[402166758,1768558149153,-438.97,0.00016488,2]
[402166759,1768558149174,-412.871304,0.00016525,2]
[402166760,1768558149194,-3462.77,0.00016546,2]
[402166761,1768558149215,-166.66,0.00016609,2]
[402166762,1768558149236,-176.60578052,0.00016757,2]
[402166827,1768558231668,-574.24112448,0.00016488,2]
[402166828,1768558231721,-589.68154739,0.00016488,2]
[402166829,1768558231733,-1388.91954942,0.00016488,2]
[402166830,1768558231744,-2345.02498503,0.00016488,2]
[402166831,1768558231756,-177.11279368,0.00016488,2]
[402166833,1768558231765,-34.94421948,0.00016757,2]
[402166834,1768558231774,-166.66,0.00016944,2]
[402166835,1768558231783,-166.7,0.00017011,2]
[402166836,1768558231792,-1196.29,0.00017277,2]
[402166837,1768558231801,-166.66,0.0001728,2]
[402166838,1768558231811,-151.0,0.00017287,2]
[402166839,1768558231820,-181.90528504,0.0001729,2]
[402166840,1768558231831,-999.0,0.0001729,2]
[402166841,1768558231843,-395.00000005,0.0001729,2]
[402166842,1768558231858,-27585.30319878,0.0001729,2]
[402166843,1768558231880,-191670.24447773,0.0001729,2]
[402166845,1768558231891,-121473.40219412,0.0001729,2]
[402166854,1768558237767,-874.50386627,0.0001729,2]
[402166855,1768558237778,-467.68727959,0.0001729,2]
[402166856,1768558237820,-428.81939326,0.0001729,2]
[402166857,1768558237833,-655924.13430516,0.0001729,2]
[402166858,1768558237842,-1200.0,0.00017298,2]
[402166859,1768558237853,-750.0,0.00017299,2]
[402166860,1768558237862,-668.578,0.000173,2]
[402166861,1768558237872,-1123.138299,0.000173,2]
[402166862,1768558237882,-163.16988165,0.000173,2]
[402166863,1768558237891,-179.02082718,0.000173,2]
[402166864,1768558237900,-7576.6608,0.000173,2]
[402166865,1768558237911,-500.0,0.00017341,2]
[402166866,1768558237920,-1123.13829898,0.00017367,2]
[402166867,1768558237929,-150.0,0.00017368,2]
[402166868,1768558237938,-274.59857102,0.0001739,2]
[402166869,1768558237948,-200.0,0.0001739,2]
[402166870,1768558237958,-500.0,0.0001739,2]
[402166871,1768558237967,-3755.30501849,0.0001739,2]
[402166872,1768558237976,-500.0,0.00017396,2]
[402166873,1768558237986,-150.0,0.00017398,2]
[402166874,1768558237995,-232.43938454,0.00017399,2]
[402166875,1768558238005,-315.48663941,0.00017399,2]
[402166876,1768558238015,-500.0,0.00017399,2]
[402166877,1768558238024,-521.91041487,0.00017399,2]
[402166878,1768558238036,-502.00518748,0.00017399,2]
[402166879,1768558238047,-500.0,0.00017399,2]
[402166880,1768558238058,-353.77219771,0.00017399,2]
[402166881,1768558238067,-614.67,0.00017399,2]
[402166882,1768558238078,-507.4251083,0.00017399,2]
[402166883,1768558238089,-500.0,0.00017399,2]
[402166884,1768558238099,-519.86,0.00017399,2]
[402166885,1768558238109,-500.0,0.00017399,2]
[402166886,1768558238119,-293.84075787,0.00017399,2]
[402166887,1768558238129,-578.77910632,0.00017399,2]
[402166888,1768558238139,-508.72192714,0.00017399,2]
[402166889,1768558238149,-186.60912116,0.00017399,2]
[402166890,1768558238159,-500.0,0.00017399,2]
[402166891,1768558238169,-500.0,0.00017399,2]
[402166892,1768558238179,-500.0,0.00017399,2]
[402166893,1768558238188,-3660.49712536,0.000174,2]
[402166894,1768558238202,-825.89185212,0.000174,2]
[402166895,1768558238214,-938.58633781,0.000174,2]
[402166896,1768558238224,-161.68383371,0.00017423,2]
[402166897,1768558238235,-1123.13829898,0.00017433,2]
[402166898,1768558238245,-282.63496249,0.00017451,2]
[402166899,1768558238256,-217.36503751,0.00017451,2]
[402166900,1768558238266,-370.63496249,0.00017456,2]
[402166923,1768558239811,-5054.34035272,0.00017456,2]
[402166925,1768558239824,-179.02082718,0.00017464,2]
[402166927,1768558239834,-1500.0,0.000175,2]
[402166929,1768558239844,-1123.13829898,0.000175,2]
[402166932,1768558239855,-500.0,0.00017505,2]
[402166934,1768558239864,-5424.97531521,0.00017511,2]
[402166936,1768558239874,-195.0,0.00017532,2]
[402166938,1768558239884,-500.0,0.0001756,2]
[402166940,1768558239893,-5424.97531521,0.00017567,2]
[402166942,1768558239903,-1123.13829898,0.00017567,2]
[402166944,1768558239912,-351.99408919,0.00017583,7]
[402166946,1768558239922,-620.95929652,0.00017583,7]
[402166948,1768558239933,-928.91797046,0.00017583,7]
[402166950,1768558239942,-1256.8545,0.00017583,7]
[402166952,1768558239951,-163.16988163,0.000176,2]
[402166954,1768558239961,-500.0,0.00017615,2]
[402166956,1768558239970,-166.66,0.00017615,2]
[402166958,1768558239981,-1743.82815022,0.00017622,2]
[402166961,1768558240007,-3681.14716499,0.00017622,2]
[402166962,1768558240017,-179.02082718,0.00017628,2]
[402166963,1768558240027,-1123.13829898,0.00017633,2]
[402166964,1768558240036,-500.0,0.0001767,2]
[402166965,1768558240047,-519.86,0.00017673,2]
[402166966,1768558240056,-5424.97531521,0.00017678,2]
[402166967,1768558240066,-1123.13829898,0.000177,2]
[402166968,1768558240075,-9062.2440411,0.00017707,2]
[402166969,1768558240084,-93227.542341,0.00017707,2]
[402166970,1768558240093,-17714.5995722,0.00017707,2]
[402166971,1768558240102,-500.0,0.00017725,2]
[402166972,1768558240112,-151.0,0.00017725,2]
[402166973,1768558240122,-160.64543439,0.00017726,2]
[402166974,1768558240136,-299.99,0.00017728,4]
[402166975,1768558240145,-9999.99,0.00017728,2]
[402166976,1768558240155,-1466.98,0.00017728,2]
[402166977,1768558240165,-18016.52,0.00017728,2]
[402166978,1768558240175,-3819.35,0.00017728,2]
[402166979,1768558240184,-150.99,0.00017728,2]
[402166980,1768558240194,-9999.99,0.00017728,2]
[402166981,1768558240204,-9999.99,0.00017728,2]
[402166982,1768558240213,-24429.82,0.00017728,2]
[402166983,1768558240222,-9999.99,0.00017728,2]
[402166984,1768558240231,-999.99,0.00017728,2]
[402166985,1768558240240,-9999.99,0.00017728,2]
[402166986,1768558240249,-121861.4,0.00017728,2]
[402166987,1768558240258,-150.99,0.00017728,2]
[402166988,1768558240268,-426.59,0.00017728,2]
[402166989,1768558240277,-5424.97531521,0.00017733,2]
[402166990,1768558240286,-2570.7981,0.00017758,2]
[402166991,1768558240295,-1123.13829898,0.00017767,2]
[402166992,1768558240304,-500.0,0.00017779,2]
[402166993,1768558240313,-5424.97531521,0.00017789,2]
[402166994,1768558240323,-151.0,0.00017789,2]
[402166995,1768558240333,-151.0,0.00017789,2]
[402166996,1768558240343,-151.0,0.00017789,2]
[402166997,1768558240352,-212.43,0.00017822,2]
[402166998,1768558240362,-2359.18088443,0.0001783,2]
[402166999,1768558240373,-178.88605488,0.00017833,2]
[402167000,1768558240386,-944.2522441,0.00017833,2]
[402167001,1768558240395,-500.0,0.00017834,2]
[402167002,1768558240405,-5424.97531521,0.00017844,2]
[402167003,1768558240415,-687.92,0.00017884,2]
[402167004,1768558240424,-500.0,0.00017889,2]
[402167005,1768558240435,-500.0,0.00017898,2]
[402167006,1768558240444,-500.0,0.00017898,2]
[402167007,1768558240462,-500.0,0.00017898,2]
[402167008,1768558240472,-500.0,0.00017898,2]
[402167009,1768558240481,-500.0,0.00017898,2]
[402167010,1768558240492,-500.0,0.00017898,2]
[402167011,1768558240501,-500.0,0.00017898,2]
[402167012,1768558240511,-631.19399297,0.00017898,2]
[402167013,1768558240520,-536.49828511,0.00017898,2]
[402167014,1768558240530,-5424.97531521,0.000179,2]
[402167015,1768558240540,-1123.13829898,0.000179,2]
[402167016,1768558240550,-163.16988163,0.000179,2]
[402167017,1768558240559,-5750.04992911,0.000179,2]
[402167018,1768558240571,-202.3452554,0.00017938,2]
[402167019,1768558240580,-524.2533444,0.00017944,2]
[402167020,1768558240591,-519.86,0.00017947,2]
[402167021,1768558240600,-32792.42819465,0.00018,2]
[402167022,1768558240613,-2779.0,0.00018,2]
[402167023,1768558240623,-8894.3368452,0.00018,2]
[402167024,1768558240635,-3864.46995742,0.00018,2]
[402167025,1768558240653,-668.47769017,0.00018,2]
[402167026,1768558240665,-3561.99998,0.00018,2]
[402167029,1768558242750,-7494.0,0.00018,2]
[402167030,1768558242962,-435.582103,0.00018,2]
[402167031,1768558243067,-611.49808899,0.00018,2]
[402167037,1768558245786,-759.48108643,0.00018,2]
[402167038,1768558245797,-169707.64203473,0.00018,2]
[402167039,1768558245808,-573.30150022,0.00018,2]
[402167040,1768558245819,-808.13842488,0.00018,2]
[402167041,1768558245829,-365.6300001,0.00018,2]
[402167042,1768558245840,-866.3099,0.00018,2]
[402167043,1768558245895,-885.56437521,0.00018,2]
[402167044,1768558245906,-2049.43256005,0.00018,2]
[402167045,1768558245918,-472.28752402,0.00018,2]
[402167046,1768558246108,-349.87046341,0.00018,2]
[402167047,1768558246120,-6556.42355414,0.00018,2]
[402167052,1768558365463,377.08,0.00026891,120]
[402167064,1768558616305,6555.93,0.00014361,2]
[402167121,1768558896319,253.23,8.395e-05,2]
[402167122,1768558896513,253.23,8.836e-05,2]
[402167123,1768558896710,253.23,9.278e-05,2]
[402167124,1768558896897,253.23,9.72e-05,2]
[402167125,1768558897126,253.23,0.00010162,2]
[402167126,1768558897524,253.23,0.00010604,2]
[402167127,1768558897717,253.23,0.00011045,2]
[402167128,1768558897906,253.23,0.00011487,2]
[402167129,1768558898121,253.23,0.00011929,2]
[402167130,1768558898306,253.23,0.00012371,2]
[402167131,1768558898535,253.23,0.00012813,2]
[402167132,1768558898714,253.23,0.00013255,2]
[402167133,1768558898908,253.23,0.00013696,2]
[402167134,1768558899120,253.23,0.00014138,2]
[402167135,1768558899318,253.23,0.0001458,2]
[402167136,1768558899694,253.23,0.00015022,2]
[402167138,1768559227131,-253.23,0.00015464,2]
[402167139,1768559227154,-193.79236108,0.00015684,2]
[402167140,1768559227176,-145.16922036,0.00015684,2]
[402167142,1768559305494,2572.66189562,0.00015633,14]
[402167143,1768559306213,6789.29544603,0.00015633,14]
[402167144,1768559306975,11977.12192769,0.00015633,14]
[402167145,1768559307703,17917.05809921,0.00015633,14]
[402167146,1768559308425,24242.4072,0.00015633,14]
[402167152,1768559349106,-291.94456744,0.00015684,2]
[402167153,1768559349132,-500.0,0.00015773,2]
[402167154,1768559349154,-500.0,0.00015773,2]
[402167155,1768559349177,-150.145518,0.00015905,2]
[402167156,1768559361091,-103.084482,0.00015905,2]
[402167157,1768559361122,-5000.00139851,0.000162,5]
[402167169,1768559408686,500.0,0.00015773,2]
[402167220,1768559431777,-500.0,0.00016321,2]
[402167223,1768559431787,-253.23,0.00016347,2]
[402167226,1768559431796,-750.0,0.00016639,2]
[402167228,1768559431805,-1871.62,0.0001664,2]
[402167230,1768559431815,-1000.0,0.00016661,2]
[402167231,1768559431824,-1500.0,0.00016669,2]
[402167232,1768559431833,-253.23,0.00016789,2]
[402167233,1768559431842,-200.0,0.00016857,2]
[402167234,1768559431851,-1200.0,0.00016878,2]
[402167235,1768559431860,-200.0,0.00016879,2]
[402167236,1768559431870,-250.0,0.00017,2]
[402167237,1768559431881,-200.0,0.0001705,2]
[402167238,1768559431891,-274.59857102,0.0001705,2]
[402167239,1768559431900,-500.0,0.0001705,2]
[402167240,1768559431910,-3240.0,0.0001706,2]
[402167241,1768559431921,-191.77,0.00017155,2]
[402167242,1768559431930,-250.0,0.00017253,2]
[402167243,1768559431939,-200.0,0.00017253,2]
[402167244,1768559431948,-49.54383326,0.00017253,2]
[402167245,1768559431961,-150.45616674,0.00017253,2]
[402167246,1768559431970,-250.0,0.00017253,2]
[402167247,1768559431980,-150.0,0.00017289,2]
[402167248,1768559431990,-250.0,0.0001735,2]
[402167249,1768559431999,-168.0,0.00017387,2]
[402167250,1768559432009,-285.96192003,0.00017399,2]
[402167251,1768559432020,-214.03807997,0.00017399,2]
[402167252,1768559432029,-500.0,0.00017399,2]
[402167253,1768559432038,-472.47253013,0.00017399,2]
[402167254,1768559432053,-27.52746987,0.00017399,2]
[402167256,1768559432062,-265.391,0.0001744,2]
[402167258,1768559432071,-161.47319797,0.00017455,2]
[402167260,1768559432080,-179.52031929,0.00017455,2]
[402167262,1768559432089,-65.45504093,0.000175,2]
[402167264,1768559432101,-1184.54495907,0.000175,2]
[402167266,1768559432110,-227.8092488,0.0001752,2]
[402167268,1768559432119,-150.0,0.00017545,2]
[402167270,1768559432128,-887.85099245,0.00017546,2]
[402167273,1768559432139,-1940.62432845,0.00017546,2]
[402167275,1768559432150,-815.82400348,0.00017546,2]
[402167277,1768559432161,-462.1300956,0.00017546,2]
[402167279,1768559432172,-1075.43,0.00017546,2]
[402167291,1768559432356,-810.9975999,0.00017546,2]
[402167292,1768559432369,-869.56,0.00017546,2]
[402167294,1768559432380,-594.61795665,0.00017546,2]
[402167295,1768559432392,-271.414428,0.00017546,2]
[402167304,1768559437875,-594.43787321,0.00017546,2]
[402167305,1768559437889,-2774.8928558,0.00017546,2]
[402167306,1768559437931,-16685.53256987,0.00017546,2]
[402167307,1768559437943,-33026.86928535,0.00017546,2]
[402167308,1768559437958,-692.86137507,0.00017546,2]
[402167309,1768559437969,-6164.14296751,0.00017546,2]
[402167310,1768559437980,-583.50918026,0.00017546,2]
[402167311,1768559437996,-10382.74959085,0.00017546,2]
[402167312,1768559438008,-1046.42200763,0.00017546,2]
[402167313,1768559438019,-15003.79999182,0.00017546,2]
[402167339,1768559438396,-809.15187004,0.00017546,2]
[402167341,1768559438407,-448.63536277,0.00017546,2]
[402167516,1768559440051,-2899.5,0.00017546,2]
[402167519,1768559440063,-540.78498045,0.00017546,2]
[402167536,1768559440211,-287690.23112035,0.00017546,2]
[402167538,1768559440223,-55728.93029231,0.00017546,2]
[402167544,1768559440267,-10067.64992968,0.00017546,2]
[402167546,1768559440281,-9506.2,0.00017546,2]
[402167548,1768559440292,-5537.36,0.00017546,2]
[402167552,1768559440322,-504.34826858,0.00017546,2]
[402167837,1768559442957,-583.83776606,0.00017546,2]
[402167839,1768559442968,-672.68823327,0.00017546,2]
[402167841,1768559442979,-999.0,0.00017546,2]
[402167852,1768559443066,-1148.13209162,0.00017546,2]
[402167858,1768559443127,-260.13847925,0.00017546,2]
[402167871,1768559443232,-686.78059288,0.00017546,2]
[402167936,1768559446216,-4768.89286219,0.00017546,2]
[402167937,1768559446231,-318.19988001,0.00017546,2]
[402167938,1768559446257,-428.14468468,0.00017546,2]
[402167939,1768559446365,-95.67392687,0.00017546,2]
[402167940,1768559446376,-695.13599655,0.00017546,2]
[402167941,1768559446388,-868.9541,0.00017546,2]
[402167982,1768559576791,1000.0,0.00030137,120]
[402168138,1768560209628,291.78900974,0.00017653,30]
[402168139,1768560210359,770.03581325,0.00017653,30]
[402168140,1768560211072,1358.43444983,0.00017653,30]
[402168141,1768560211793,2032.13669432,0.00017653,30]
[402168142,1768560212520,2749.5468,0.00017653,30]
[402168177,1768560442138,-166.66,0.00015727,2]
[402168178,1768560442159,-250.0,0.00015892,2]
[402168179,1768560442180,-166.66,0.00016058,2]
[402168180,1768560442200,-151.0,0.0001612,2]
[402168181,1768560442219,-166.66,0.00016389,2]
[402168182,1768560442238,-999.0,0.00016442,3]
[402168183,1768560442258,-250.0,0.00016489,2]
[402168184,1768560442277,-500.0,0.00016712,2]
[402168185,1768560442297,-166.66,0.0001672,2]
[402168186,1768560442317,-292.0,0.00016796,2]
[402168187,1768560442336,-200.0,0.00016796,2]
[402168188,1768560442358,-250.0,0.00017,2]
[402168189,1768560442379,-166.66,0.00017051,2]
[402168190,1768560442400,-500.0,0.0001726,2]
[402168191,1768560442420,-250.0,0.00017299,2]
[402168192,1768560442439,-300.0,0.00017299,2]
[402168193,1768560442461,-195.0,0.00017299,2]
[402168194,1768560442480,-300.0,0.00017299,2]
[402168195,1768560442501,-340.37517831,0.00017299,2]
[402168196,1768560442522,-250.0,0.00017299,2]
[402168197,1768560442542,-161.47319797,0.00017346,2]
[402168198,1768560442564,-1200.0,0.00017379,2]
[402168199,1768560442584,-667.31527775,0.0001738,2]
[402168200,1768560447081,-1332.68472225,0.0001738,2]
[402168201,1768560447115,-166.66,0.00017382,2]
[402168202,1768560447138,-2000.0,0.0001743,2]
[402168203,1768560447159,-194.47326383,0.00017436,2]
[402168214,1768560547112,-386.34915523,0.00015773,2]
[402168265,1768560631946,-717.77,0.0001667,2]
[402168266,1768560631956,-150.0,0.00017228,2]
[402168267,1768560631966,-150.0,0.00017336,2]
[402168268,1768560631975,-179.52031928,0.00017346,2]
[402168269,1768560631984,-929.42641781,0.00017346,2]
[402168270,1768560631993,-250.0,0.00017386,2]
[402168271,1768560632003,-929.42641773,0.00017408,2]
[402168272,1768560632012,-100.45430704,0.00017436,2]
[402168273,1768560632023,-205.07242913,0.00017436,2]
[402168274,1768560632033,-660.99739858,0.00017436,2]
[402168275,1768560632043,-300.0,0.00017443,2]
[402168276,1768560632052,-1200.0,0.00017443,2]
[402168277,1768560632062,-150.0,0.00017444,2]
[402168278,1768560632071,-1052.78,0.00017444,2]
[402168279,1768560632088,-500.0,0.00017444,2]
[402168280,1768560632099,-521.91041487,0.00017444,2]
[402168281,1768560632108,-296.31125858,0.00017444,2]
[402168282,1768560632118,-500.0,0.00017444,2]
[402168283,1768560632127,-500.0,0.00017444,2]
[402168284,1768560632136,-500.0,0.00017444,2]
[402168285,1768560632149,-500.0,0.00017444,2]
[402168286,1768560632159,-500.0,0.00017444,2]
[402168287,1768560632168,-353.77219771,0.00017444,2]
[402168288,1768560632178,-187.29396545,0.00017444,2]
[402168289,1768560632187,-609.32739728,0.00017444,2]
[402168290,1768560632196,-582.63655551,0.00017444,2]
[402168291,1768560632206,-500.0,0.00017444,2]
[402168293,1768560632216,-500.0,0.00017444,2]
[402168295,1768560632225,-500.0,0.00017444,2]
[402168297,1768560632234,-500.0,0.00017444,2]
[402168298,1768560632244,-500.0,0.00017444,2]
[402168299,1768560632254,-610.0,0.00017444,2]
[402168300,1768560632263,-500.0,0.00017444,2]
[402168302,1768560632273,-500.0,0.00017444,2]
[402168304,1768560632283,-500.0,0.00017444,2]
[402168306,1768560632292,-500.0,0.00017444,2]
[402168308,1768560632301,-500.0,0.00017444,2]
[402168310,1768560632311,-500.0,0.00017444,2]
[402168312,1768560632320,-500.0,0.00017444,2]
[402168314,1768560632330,-500.0,0.00017444,2]
[402168316,1768560632344,-500.0,0.00017444,2]
[402168318,1768560632354,-500.0,0.00017444,2]
[402168319,1768560632364,-500.0,0.00017444,2]
[402168320,1768560632375,-500.0,0.00017444,2]
[402168321,1768560632384,-500.0,0.00017444,2]
[402168323,1768560632394,-500.0,0.00017444,2]
[402168324,1768560632404,-500.0,0.00017444,2]
[402168325,1768560632415,-500.0,0.00017444,2]
[402168326,1768560632425,-500.0,0.00017444,2]
[402168327,1768560632435,-500.0,0.00017444,2]
[402168328,1768560632444,-500.0,0.00017444,2]
[402168329,1768560632454,-5332.22011352,0.00017445,2]
[402168330,1768560632476,-4387.67352384,0.00017445,2]
[402168331,1768560632499,-1432.6153019,0.00017445,2]
[402168332,1768560632516,-17023.41557708,0.00017445,2]
[402168333,1768560632528,-737.22721849,0.00017445,2]
[402168341,1768560637996,-2141.47455701,0.00017445,2]
[402168342,1768560638010,-574.0,0.00017445,2]
[402168343,1768560638021,-314.06540004,0.00017445,2]
[402168344,1768560638042,-3375.5170958,0.00017445,2]
[402168345,1768560638054,-3389.28244637,0.00017445,2]
[402168346,1768560638094,-4114.70428534,0.00017445,2]
[402168347,1768560638106,-2525.8104833,0.00017445,2]
[402168348,1768560638118,-469.5895108,0.00017445,2]
[402168349,1768560638129,-3739.35521891,0.00017445,2]
[402168350,1768560638141,-33791.85748432,0.00017445,2]
[402168351,1768560638153,-11333.92026781,0.00017445,2]
[402168352,1768560638165,-33329.90995989,0.00017445,2]
[402168353,1768560638176,-3076.73606805,0.00017445,2]
[402168354,1768560638191,-1423.15717111,0.00017445,2]
[402168355,1768560638203,-696.05560694,0.00017445,2]
[402168356,1768560638215,-597.05296577,0.00017445,2]
[402168357,1768560638226,-18200.89889173,0.00017445,2]
[402168358,1768560638246,-281.55,0.00017445,2]
[402168359,1768560638266,-1691.06524236,0.00017445,2]
[402168370,1768560640732,-989.3610705,0.00017346,2]
[402168371,1768560640743,-163337.03123421,0.00017445,2]
[402168372,1768560640759,-8640.93369751,0.00017445,2]
[402168373,1768560640775,-674042.8806779,0.00017445,2]
[402168374,1768560640787,-1000.0,0.00017446,2]
[402168375,1768560640797,-7576.6608,0.00017446,2]
[402168376,1768560640808,-500.0,0.00017446,2]
[402168378,1768560640818,-668.578,0.00017446,2]
[402168379,1768560640829,-500.0,0.00017452,2]
[402168381,1768560640840,-929.42641773,0.00017469,2]
[402168383,1768560640853,-1250.0,0.000175,2]
[402168385,1768560640864,-717.77,0.00017504,2]
[402168387,1768560640874,-929.42641773,0.00017531,2]
[402168389,1768560640884,-19988.2615357,0.00017531,2]
[402168391,1768560640894,-3755.30501849,0.00017536,2]
[402168393,1768560640904,-614.67,0.00017544,2]
[402168394,1768560640914,-111755.6329862,0.00017546,2]
[402168395,1768560640925,-23079.7281881,0.00017546,2]
[402168396,1768560640935,-19945.3836745,0.00017546,2]
[402168397,1768560640945,-508.72192714,0.00017546,2]
[402168398,1768560640955,-186.60912116,0.00017546,2]
[402168399,1768560640965,-500.0,0.00017546,2]
[402168400,1768560640976,-500.0,0.00017546,2]
[402168401,1768560640987,-500.0,0.00017546,2]
[402168402,1768560640997,-392.1053811,0.00017546,2]
[402168403,1768560641009,-500.0,0.00017546,2]
[402168404,1768560641019,-500.0,0.00017546,2]
[402168405,1768560641029,-500.0,0.00017546,2]
[402168406,1768560641040,-179.3712895,0.00017546,2]
[402168407,1768560641051,-292.42921136,0.00017546,2]
[402168408,1768560641062,-502.00518748,0.00017546,2]
[402168409,1768560641073,-500.0,0.00017546,2]
[402168410,1768560641084,-507.4251083,0.00017546,2]
[402168411,1768560641095,-578.77910632,0.00017546,2]
[402168412,1768560641105,-188.2719,0.00017546,2]
[402168413,1768560641115,-354.81044866,0.00017555,2]
[402168414,1768560641127,-500.0,0.00017562,2]
[402168415,1768560641137,-150.0,0.00017594,2]
[402168416,1768560641149,-500.0,0.0001767,2]
[402168417,1768560641159,-150.0,0.0001767,2]
[402168418,1768560641170,-150.0,0.0001767,2]
[402168419,1768560641181,-150.0,0.0001767,2]
[402168420,1768560641191,-1052.78,0.00017718,2]
[402168421,1768560641202,-453.0,0.0001772,2]
[402168422,1768560641211,-500.0,0.00017725,2]
[402168423,1768560641221,-150.0,0.00017725,2]
[402168424,1768560641231,-244.0,0.00017744,2]
[402168425,1768560641241,-188.27191,0.00017746,2]
[402168426,1768560641253,-500.0,0.0001778,2]
[402168427,1768560641263,-150.0,0.0001778,2]
[402168428,1768560641274,-150.0,0.00017789,2]
[402168429,1768560641286,-212.43,0.00017834,2]
[402168430,1768560641296,-500.0,0.00017834,2]
[402168431,1768560641306,-206.18320436,0.00017834,2]
[402168432,1768560641316,-150.0,0.00017878,2]
[402168433,1768560641326,-500.0,0.00017889,2]
[402168434,1768560641336,-5019.82053718,0.000179,3]
[402168435,1768560641349,-881.36557324,0.000179,2]
[402168436,1768560641359,-377.08,0.00017927,2]
[402168437,1768560641368,-150.0,0.00017936,2]
[402168438,1768560641379,-500.0,0.00017944,2]
[402168439,1768560641388,-188.2719,0.00017946,2]
[402168440,1768560641397,-1052.78,0.00017992,2]
[402168441,1768560641407,-500.0,0.00017999,2]
[402168442,1768560641416,-1007.5651,0.00017999,2]
[402168443,1768560641426,-300.0,0.00017999,2]
[402168444,1768560641435,-500.0,0.00017999,2]
[402168445,1768560641445,-608.61424855,0.00017999,2]
[402168446,1768560641456,-300.0,0.00017999,2]
[402168447,1768560641465,-4632.0,0.00018,2]
[402168448,1768560641476,-5902364.01888573,0.00018,2]
[402168463,1768560643601,-929.42641773,0.00017592,2]
[402168464,1768560643612,-1921.91386627,0.00018,2]
[402168470,1768560646099,-989.36107047,0.00017408,2]
[402168471,1768560646110,-431526.16119803,0.00018,2]
[402168472,1768560646320,-1384.98782756,0.00018,2]
[402168473,1768560646439,-24.07506536,0.00018,2]
[402168570,1768560727553,199.70688493,0.00015773,2]
[402168571,1768560910616,-177.92236706,0.00015773,2]
[402168572,1768560913322,-204.00360989,0.00015773,2]
[402168575,1768561066802,478.42,0.00024714,120]
[402168576,1768561193406,6328.79,0.00013635,2]
[402168578,1768561603117,-217.71221348,0.00015773,2]
[402168579,1768561603139,-137.10431107,0.00015773,2]
[402168580,1768561625096,-297.66164283,0.00015773,2]
[402168581,1768561634096,-65.2340461,0.00015773,2]
[402168582,1768561634121,-250.0,0.00015773,2]
[402168583,1768561634141,-195.0,0.00015773,2]
[402168584,1768561634161,-282.0,0.00015773,2]
[402168585,1768561634181,-200.0,0.0001626,2]
[402168586,1768561634200,-1000.0,0.00016321,2]
[402168587,1768561634219,-171.25216261,0.00016338,2]
[402168588,1768561634237,-800.75292195,0.00016438,2]
[402168589,1768561634259,-332.99850388,0.00016476,2]
[402168591,1768561760797,159.0,0.000157,2]
[402168600,1768561832142,-172.59,0.00016333,2]